fUST/lending_fUST_20240907
["ID","MTS","AMOUNT","RATE_DAILY","PERIOD"]
[337476181,1725681168248,208.1608168,0.00040818,2]
[337476182,1725681170271,208.1608168,0.00040818,2]
[337476183,1725681195469,306.0,0.00040818,2]
[337476184,1725681206639,416.0230663,0.00040818,2]
[337476185,1725681254855,151.0,0.0003,120]
[337476186,1725681255427,151.0,0.00035452,120]
[337476187,1725681256014,151.0,0.00040904,120]
[337476188,1725681276375,151.0,0.0003,120]
[337476189,1725681276926,151.0,0.0004,120]
[337476191,1725681392219,207.021869,0.00042344,2]
[337476192,1725681426972,167.132128,0.00042779,2]
[337476193,1725681427267,167.132128,0.00043058,2]
[337476194,1725681427411,167.132128,0.00043336,2]
[337476195,1725681427638,167.132128,0.00043615,2]
[337476196,1725681427851,167.132128,0.00043894,2]
[337476197,1725681428071,167.132128,0.00044172,2]
[337476198,1725681428306,167.132128,0.00044451,2]
[337476199,1725681428539,167.132128,0.0004473,2]
[337476200,1725681433845,696.269,0.00045,120]
[337476201,1725681469472,1092.0,0.00045,2]
[337476204,1725681473279,2000.0,0.00045,2]
[337476205,1725681480726,500.0,0.00045,120]
[337476206,1725681491327,995.1465903,0.00034014,30]
[337476207,1725681491351,1004.8534097,0.00034014,30]
[337476208,1725681516655,1000.0,0.000425,2]
[337476209,1725681533752,2399.711,0.00033976,30]
[337476210,1725681633574,300.0,0.0004,10]
[337476211,1725681686602,641.22950457,0.00033976,30]
[337476212,1725681829812,200.0,0.00041,30]
[337476213,1725681843711,200.0,0.000425,30]
[337476214,1725681863016,200.0,0.000425,30]
[337476215,1725681879402,200.0,0.000425,30]
[337476216,1725681895314,200.0,0.000425,30]
[337476217,1725681957150,-207.02187,0.00042551,2]
[337476218,1725681957175,-162.015819,0.00042841,2]
[337476219,1725681957200,-162.015819,0.000434,2]
[337476220,1725681957224,-134.99502097,0.00043958,2]
[337476226,1725682005146,200.0,0.000425,30]
[337476227,1725682032109,-201.01962436,0.0004387,6]
[337476228,1725682032132,-27.02079803,0.00043958,2]
[337476229,1725682032157,-162.015819,0.00044516,2]
[337476230,1725682032179,-162.015819,0.00045074,2]
[337476231,1725682032199,-151.0,0.00046356,120]
[337476232,1725682032220,-500.0,0.00047,120]
[337476233,1725682032243,-195.28,0.0004732,5]
[337476234,1725682032266,-500.0,0.00048,120]
[337476235,1725682032288,-767.0563081,0.000488,120]
[337476236,1725682032310,-500.0,0.00049,120]
[337476237,1725682032332,-500.0,0.00049,120]
[337476238,1725682032355,-500.0,0.00049315,120]
[337476239,1725682032379,-345.56931961,0.00049315,120]
[337476240,1725682032402,-186.61643091,0.000495,2]
[337476241,1725682032423,-7856.65686122,0.000498,120]
[337476242,1725682039018,200.0,0.000425,30]
[337476245,1725682042770,-271.6087414,0.00043,120]
[337476246,1725682043113,-2092.00311081,0.00043,120]
[337476247,1725682046276,742.35373619,0.00041691,30]
[337476248,1725682054228,-824.02823353,0.00043,120]
[337476249,1725682056053,200.0,0.000425,30]
[337476250,1725682064574,200.0,0.000425,30]
[337476251,1725682076328,166.781254,0.00038122,2]
[337476256,1725682126126,163.76,0.000425,30]
[337476257,1725682198173,2000.0,0.00049,40]
[337476258,1725682230205,1771.46744818,0.000425,120]
[337476259,1725682230226,2823.74282216,0.000425,120]
[337476260,1725682230250,404.78972966,0.000425,120]
[337476305,1725682232257,-120.17306812,0.00033968,7]
[337476471,1725682235333,3460.81051885,0.000425,120]
[337476472,1725682235355,1539.18948115,0.000425,120]
[337476534,1725682238775,-85.97697728,0.00033968,7]
[337476536,1725682238784,-68094.1602973,0.0004948,2]
[337476538,1725682238794,-1500.0,0.000495,60]
[337476540,1725682238803,-6008.10876172,0.000498,120]
[337476551,1725682238918,-22273.62,0.0004986,3]
[337476554,1725682238928,-1941.95167454,0.00049861,2]
[337476556,1725682238938,-29027.81208698,0.0004987,120]
[337476558,1725682238949,-479.045,0.0004989,88]
[337476560,1725682238958,-2475.72281469,0.0004989,2]
[337476562,1725682238968,-260.95070345,0.00049938,31]
[337476564,1725682238978,-508.19832027,0.00049938,120]
[337476566,1725682238989,-500.0,0.00049938,120]
[337476568,1725682238998,-604.28030698,0.00049938,120]
[337476570,1725682239008,-500.0,0.00049938,120]
[337476572,1725682239018,-500.0,0.00049938,120]
[337476574,1725682239027,-500.0,0.00049938,120]
[337476576,1725682239037,-500.0,0.00049938,120]
[337476578,1725682239046,-339.30749644,0.00049938,120]
[337476580,1725682239056,-229.37009261,0.00049938,31]
[337476582,1725682239065,-360.30779925,0.00049938,120]
[337476584,1725682239074,-238.5732162,0.00049938,7]
[337476586,1725682239083,-500.0,0.00049938,7]
[337476588,1725682239092,-500.0,0.00049938,7]
[337476590,1725682239101,-500.0,0.00049938,7]
[337476592,1725682239110,-500.0,0.00049938,7]
[337476594,1725682239120,-9089.16991628,0.00049939,61]
[337476596,1725682239129,-136043.04287039,0.00049939,2]
[337476598,1725682239141,-89627.47673499,0.00049939,2]
[337476610,1725682239254,-88000.0,0.00049939,2]
[337476615,1725682239297,1943.83545834,0.000425,120]
[337476937,1725682243604,-314.32,0.000425,120]
[337476989,1725682296226,300.497376,0.00040581,2]
[337476990,1725682364539,153.0,0.00040762,2]
[337476991,1725682364661,153.0,0.00040762,2]
[337476992,1725682365078,153.0,0.00040762,2]
[337476993,1725682365593,416.1451864,0.00040762,2]
[337476994,1725682365725,153.0,0.00040762,2]
[337476995,1725682366276,153.0,0.00040762,2]
[337476996,1725682367861,153.0,0.00040762,2]
[337476997,1725682394827,146.66853314,0.00040762,2]
[337476998,1725682442083,-6.33146686,0.00040762,2]
[337476999,1725682442110,-153.0,0.00040762,2]
[337477000,1725682442135,-153.0,0.00040762,2]
[337477001,1725682442159,-153.0,0.00040762,2]
[337477002,1725682442188,-153.0,0.00040762,2]
[337477003,1725682442215,-153.0,0.00040762,2]
[337477004,1725682442244,-153.0,0.00040762,2]
[337477005,1725682446573,-2741.84454166,0.000425,120]
[337477006,1725682446597,-2882.00988816,0.000425,120]
[337477007,1725682446622,-1295.8256114,0.00043133,2]
[337477008,1725682453986,151.0,0.0003,120]
[337477009,1725682454745,151.0,0.00036658,120]
[337477010,1725682455304,151.0,0.00043315,120]
[337477011,1725682461174,-1000.0,0.00049723,14]
[337477012,1725682461206,-150.59905972,0.00049769,120]
[337477013,1725682461239,-6945.04508178,0.00049839,2]
[337477014,1725682461273,-1553.56133964,0.00049859,2]
[337477015,1725682461305,-350.79451886,0.0004986,2]
[337477016,1725682463186,-689.76431811,0.0004986,2]
[337477017,1725682463518,-1553.56133961,0.00049869,2]
[337477018,1725682463841,-1553.56133961,0.0004988,2]
[337477019,1725682463976,-1553.56133961,0.0004989,2]
[337477020,1725682464146,-1000.0,0.000499,90]
[337477021,1725682464177,-1553.56133961,0.000499,2]
[337477022,1725682464204,-2095.99032345,0.0004992,3]
[337477023,1725682476035,164.830314,0.00037618,2]
[337477024,1725682476459,164.830314,0.00039578,2]
[337477029,1725682594532,300.0,0.00038,60]
[337477030,1725682598311,300.0,0.00038,60]
[337477032,1725682600979,300.0,0.00038,60]
[337477033,1725682609982,170.427509,0.00040923,2]
[337477034,1725682611680,300.0,0.0004,60]
[337477035,1725682721707,254.566,0.000345,120]
[337477036,1725682721853,254.567,0.000345,120]
[337477037,1725682721918,254.567,0.000345,120]
[337477038,1725682721969,254.567,0.000345,120]
[337477039,1725682722031,254.567,0.000345,120]
[337477040,1725682950945,1000.0,0.000475,2]
[337477041,1725683051667,151.0,0.0003,120]
[337477042,1725683052282,151.0,0.00037507,120]
[337477043,1725683052879,151.0,0.00045014,120]
[337477044,1725683135146,-522.25,0.00049315,120]
[337477045,1725683135169,-522.25,0.00049315,120]
[337477046,1725683135191,-90.69623689,0.00049315,120]
[337477052,1725683171401,151.0,0.0003,120]
[337477053,1725683171989,151.0,0.00038575,120]
[337477054,1725683172574,151.0,0.00047151,120]
[337477056,1725683211925,214.08052681,0.00046915,46]
[337477057,1725683225104,-349.44738314,0.00049315,120]
[337477058,1725683226093,-162.56153178,0.00049315,120]
[337477059,1725683237102,-1175.27914219,0.00049315,120]
[337477060,1725683242093,-261.06497516,0.00049315,120]
[337477061,1725683249094,-243.79912351,0.00049315,120]
[337477063,1725683273396,172.36462444,0.00045,120]
[337477064,1725683299894,1810.53022722,0.00045,120]
[337477065,1725683324128,214.0,0.000195,10]
[337477067,1725683361098,-1058.54904846,0.000491,120]
[337477068,1725683361119,-500.0,0.00049315,120]
[337477069,1725683361140,-500.0,0.00049315,120]
[337477070,1725683361160,-500.0,0.00049315,120]
[337477071,1725683361180,-500.0,0.00049315,120]
[337477072,1725683361201,-500.0,0.00049315,120]
[337477073,1725683361221,-500.0,0.00049315,120]
[337477074,1725683361241,-500.0,0.00049315,120]
[337477075,1725683361267,-500.0,0.00049315,120]
[337477076,1725683361286,-500.0,0.00049315,120]
[337477077,1725683361306,-500.0,0.00049315,120]
[337477078,1725683361327,-500.0,0.00049315,120]
[337477079,1725683361349,-500.0,0.00049315,120]
[337477080,1725683361371,-500.0,0.00049315,120]
[337477081,1725683361392,-500.0,0.00049315,120]
[337477082,1725683361413,-500.0,0.00049315,120]
[337477083,1725683361433,-500.0,0.00049315,120]
[337477084,1725683361454,-500.0,0.00049315,120]
[337477085,1725683361479,-500.0,0.00049315,120]
[337477086,1725683361500,-500.0,0.00049315,120]
[337477087,1725683361521,-500.0,0.00049315,120]
[337477088,1725683361541,-500.0,0.00049315,120]
[337477089,1725683361565,-500.0,0.00049315,120]
[337477090,1725683361589,-398.84429183,0.00049315,120]
[337477123,1725683432459,-175.02144774,0.00033981,2]
[337477124,1725683432469,-526.84855226,0.000498,120]
[337477125,1725683432481,-524.97725827,0.000498,120]
[337477126,1725683432535,-71.08214162,0.000498,120]
[337477138,1725683438522,-4885.20080957,0.000498,120]
[337477139,1725683438532,-388.39033494,0.000498,2]
[337477140,1725683438541,-388.3903349,0.00049808,2]
[337477141,1725683438552,-388.3903349,0.00049816,2]
[337477142,1725683438561,-1000.0,0.00049821,2]
[337477143,1725683438571,-55555.0,0.00049821,120]
[337477144,1725683438580,-388.3903349,0.00049824,2]
[337477145,1725683438589,-388.3903349,0.00049832,2]
[337477146,1725683438598,-610.811,0.00049841,88]
[337477147,1725683438607,-21924.28,0.00049878,3]
[337477148,1725683438617,-3710.23325088,0.00049888,61]
[337477180,1725683443935,-288.1,0.00049878,3]
[337477185,1725683446509,-17982.14,0.00049878,3]
[337477186,1725683446518,-4313.33445313,0.00049888,61]
[337477187,1725683446530,-969.10368505,0.00049888,61]
[337477197,1725683450087,-936.5029533,0.000498,2]
[337477198,1725683450115,-96.49852722,0.00049888,61]
[337477199,1725683450142,-8966.99851948,0.00049888,2]
[337477200,1725683451202,-10000.0,0.00049888,2]
[337477201,1725683452345,-10000.0,0.00049888,2]
[337477202,1725683453347,-10000.0,0.00049888,2]
[337477203,1725683454393,-10000.0,0.00049878,3]
[337477206,1725683822181,2257.10248453,0.0004044,2]
[337477207,1725683822206,341.50967007,0.0004044,2]
[337477208,1725683845710,298.9080311,0.0004044,2]
[337477209,1725683942565,2439.90225761,0.00041125,2]
[337477210,1725683942709,668.82022779,0.00041125,2]
[337477211,1725684025533,4069.79650758,0.000425,2]
[337477213,1725684126777,1106.2306858,0.00040434,2]
[337477214,1725684183661,616.381,0.00030347,30]
[337477215,1725684206695,2614.0,0.000425,2]
[337477216,1725684214204,0.44011197,0.00041577,2]
[337477222,1725684311021,151.13,0.00033987,30]
[337477223,1725684328369,277.58,0.000252,2]
[337477224,1725684330134,-166.781254,0.00041402,2]
[337477225,1725684330158,-225.01352013,0.00041577,2]
[337477226,1725684330182,-1825.28851078,0.00045,2]
[337477227,1725684338078,-267.96826148,0.00045,2]
[337477229,1725684426092,-160.104423,0.00042217,2]
[337477230,1725684426113,-3182.35805164,0.00045,2]
[337477231,1725684426133,-110.63724247,0.00048837,30]
[337477232,1725684427095,-477.74935165,0.00048837,30]
[337477233,1725684427115,-2153.43598204,0.00049,30]
[337477234,1725684434131,-1084.41326962,0.00049,30]
[337477235,1725684439113,-762.15074834,0.00049,30]
[337477236,1725684439140,-150.0,0.0004963,2]
[337477237,1725684439170,-1020.02590029,0.00049701,28]
[337477238,1725684439190,-468.75676346,0.00049789,30]
[337477239,1725684459733,250.0,0.00039602,2]
[337477240,1725684509693,3213.1,0.0004,2]
[337477241,1725684592171,1083.5416617,0.00041717,2]
[337477242,1725684600838,164.9022,0.0004203,2]
[337477243,1725684601031,164.9022,0.00042303,2]
[337477244,1725684601276,164.9022,0.00042577,2]
[337477245,1725684601488,164.9022,0.00042851,2]
[337477246,1725684601766,164.9022,0.00043125,2]
[337477247,1725684601989,164.9022,0.00043398,2]
[337477248,1725684602214,164.9022,0.00043672,2]
[337477249,1725684602464,164.9022,0.00043946,2]
[337477250,1725684602672,164.9022,0.0004422,2]
[337477257,1725684606827,588.45596287,0.00031407,2]
[337477277,1725684632610,-6130.60684018,0.00049742,61]
[337477284,1725684632667,-269.0947434,0.00049742,61]
[337477286,1725684632676,-65.74021289,0.00049742,2]
[337477356,1725684638808,-500.0,0.00049741,7]
[337477357,1725684638818,-360.30779925,0.00049741,120]
[337477358,1725684638828,-229.37009261,0.00049741,31]
[337477359,1725684638843,-339.30749644,0.00049741,120]
[337477360,1725684638861,-499.14255352,0.00049741,120]
[337477361,1725684638870,-357.27370113,0.00049741,120]
[337477362,1725684638883,-142.72629887,0.00049741,120]
[337477363,1725684638892,-238.5732162,0.00049741,7]
[337477364,1725684638901,-500.0,0.00049741,7]
[337477365,1725684638911,-500.0,0.00049741,7]
[337477366,1725684638920,-500.0,0.00049741,7]
[337477367,1725684638930,-87746.17721992,0.00049742,2]
[337477385,1725684640799,-17519.23,0.00049732,3]
[337477386,1725684640809,-51552.15874492,0.00049742,2]
[337477387,1725684640853,-812.08276109,0.00049742,2]
[337477393,1725684643836,-215964.31569758,0.00049742,2]
[337477410,1725684646855,-4147.54387165,0.00049742,2]
[337477412,1725685014406,168.8322633,0.00038133,2]
[337477413,1725685054250,1146.163,0.0004,2]
[337477414,1725685124010,161.158942,0.00037785,2]
[337477415,1725685124206,161.158942,0.00038441,2]
[337477416,1725685124435,161.158942,0.00039097,2]
[337477417,1725685124647,161.158942,0.00039754,2]
[337477418,1725685155659,500.0,0.0004,2]
[337477425,1725685368688,251.0,0.00038377,2]
[337477426,1725685410922,1500.0,0.000271,120]
[337477427,1725685412294,200.0,0.00038944,30]
[337477429,1725685530235,-170.427509,0.00041433,2]
[337477430,1725685530259,-650.72449556,0.00042091,63]
[337477433,1725685626101,-52.57950444,0.00042091,63]
[337477434,1725685626124,-1095.63697493,0.000425,120]
[337477435,1725685626146,-892.52266278,0.00048888,28]
[337477436,1725685626167,-851.93634157,0.000489,2]
[337477437,1725685640095,-148.06365843,0.000489,2]
[337477438,1725685640119,-131.32894715,0.00048977,30]
[337477439,1725685652130,-418.67105285,0.00048977,30]
[337477440,1725685652157,-2534.31283086,0.00048978,3]
[337477441,1725685653097,-850.06673714,0.00048978,3]
[337477442,1725685687396,229.51333,0.00037379,2]
[337477443,1725685687627,229.51333,0.00039327,2]
[337477447,1725685757650,211.0,0.000271,120]
[337477448,1725685759133,-1000.0,0.000489,2]
[337477449,1725685759156,-8920.9,0.00048967,3]
[337477450,1725685759182,-194.17,0.00048967,30]
[337477451,1725685759214,-161.8,0.00048967,30]
[337477452,1725685759239,-420.0,0.00048967,30]
[337477453,1725685759262,-15468.35,0.00048968,3]
[337477454,1725685759286,-990.00000605,0.00048977,120]
[337477455,1725685759311,-500.0,0.00048977,7]
[337477456,1725685759334,-990.00000605,0.00048977,120]
[337477457,1725685759357,-500.0,0.00048977,7]
[337477458,1725685759378,-990.00000605,0.00048977,120]
[337477459,1725685759400,-500.0,0.00048977,7]
[337477460,1725685759422,-990.00000605,0.00048977,120]
[337477461,1725685759444,-288.5732162,0.00048977,7]
[337477462,1725685759468,-990.00000605,0.00048977,120]
[337477463,1725685759490,-990.00000605,0.00048977,120]
[337477464,1725685759511,-990.00000605,0.00048977,120]
[337477465,1725685759532,-990.00000605,0.00048977,120]
[337477466,1725685759553,-990.00000605,0.00048977,120]
[337477467,1725685759574,-990.00000605,0.00048977,120]
[337477468,1725685759595,-990.00000605,0.00048977,120]
[337477469,1725685759615,-990.00000605,0.00048977,120]
[337477470,1725685759635,-990.00000605,0.00048977,120]
[337477471,1725685759657,-990.00000605,0.00048977,120]
[337477472,1725685759680,-990.00000605,0.00048977,120]
[337477473,1725685759703,-990.00000605,0.00048977,120]
[337477474,1725685759724,-990.00000605,0.00048977,120]
[337477475,1725685759746,-990.00000605,0.00048977,120]
[337477476,1725685759767,-990.00000605,0.00048977,120]
[337477477,1725685759788,-990.00000605,0.00048977,120]
[337477478,1725685759811,-990.00000605,0.00048977,120]
[337477479,1725685759834,-990.00000605,0.00048977,120]
[337477480,1725685759856,-990.00000605,0.00048977,120]
[337477481,1725685759878,-990.00000605,0.00048977,120]
[337477482,1725685759898,-990.00000605,0.00048977,120]
[337477483,1725685759918,-990.00000605,0.00048977,120]
[337477484,1725685759938,-990.00000605,0.00048977,120]
[337477485,1725685759960,-990.00000605,0.00048977,120]
[337477486,1725685759980,-990.00000605,0.00048977,120]
[337477487,1725685760003,-990.00000605,0.00048977,120]
[337477488,1725685760024,-990.00000605,0.00048977,120]
[337477489,1725685760046,-990.00000605,0.00048977,120]
[337477490,1725685760066,-990.00000605,0.00048977,120]
[337477491,1725685760087,-990.00000605,0.00048977,120]
[337477492,1725685760108,-990.00000605,0.00048977,120]
[337477493,1725685760129,-990.00000605,0.00048977,120]
[337477494,1725685760150,-990.00000605,0.00048977,120]
[337477495,1725685760171,-990.00000605,0.00048977,120]
[337477496,1725685760191,-990.00000605,0.00048977,120]
[337477497,1725685760235,-990.00000605,0.00048977,120]
[337477498,1725685760261,-990.00000605,0.00048977,120]
[337477499,1725685760287,-990.00000605,0.00048977,120]
[337477500,1725685760311,-990.00000605,0.00048977,120]
[337477501,1725685760335,-990.00000605,0.00048977,120]
[337477502,1725685760359,-990.00000605,0.00048977,120]
[337477503,1725685760384,-990.00000605,0.00048977,120]
[337477504,1725685760407,-990.00000605,0.00048977,120]
[337477505,1725685760430,-990.00000605,0.00048977,120]
[337477506,1725685760459,-990.00000605,0.00048977,120]
[337477507,1725685760482,-990.00000605,0.00048977,120]
[337477508,1725685760504,-990.00000605,0.00048977,120]
[337477509,1725685760526,-990.00000605,0.00048977,120]
[337477510,1725685760548,-990.00000605,0.00048977,120]
[337477511,1725685760571,-990.00000605,0.00048977,120]
[337477512,1725685760593,-990.00000605,0.00048977,120]
[337477513,1725685760615,-990.00000605,0.00048977,120]
[337477514,1725685760636,-990.00000605,0.00048977,120]
[337477515,1725685760657,-990.00000605,0.00048977,120]
[337477516,1725685760679,-990.00000605,0.00048977,120]
[337477517,1725685760702,-990.00000605,0.00048977,120]
[337477518,1725685760724,-990.00000605,0.00048977,120]
[337477519,1725685760861,-990.00000605,0.00048977,120]
[337477520,1725685760884,-990.00000605,0.00048977,120]
[337477521,1725685760905,-990.00000605,0.00048977,120]
[337477522,1725685760926,-965.2500059,0.00048977,120]
[337477523,1725685760947,-965.2500059,0.00048977,120]
[337477524,1725685760970,-965.2500059,0.00048977,120]
[337477525,1725685760990,-965.2500059,0.00048977,120]
[337477526,1725685761011,-965.2500059,0.00048977,120]
[337477527,1725685761031,-965.2500059,0.00048977,120]
[337477528,1725685761051,-965.2500059,0.00048977,120]
[337477529,1725685761071,-965.2500059,0.00048977,120]
[337477530,1725685761092,-965.2500059,0.00048977,120]
[337477531,1725685761115,-965.2500059,0.00048977,120]
[337477532,1725685761138,-965.2500059,0.00048977,120]
[337477533,1725685761160,-965.2500059,0.00048977,120]
[337477534,1725685761181,-965.2500059,0.00048977,120]
[337477535,1725685761207,-965.2500059,0.00048977,120]
[337477536,1725685761229,-965.2500059,0.00048977,120]
[337477537,1725685761255,-965.2500059,0.00048977,120]
[337477538,1725685761278,-965.2500059,0.00048977,120]
[337477539,1725685761299,-965.2500059,0.00048977,120]
[337477540,1725685761319,-965.2500059,0.00048977,120]
[337477541,1725685761341,-965.2500059,0.00048977,120]
[337477542,1725685761367,-965.2500059,0.00048977,120]
[337477543,1725685761387,-965.2500059,0.00048977,120]
[337477544,1725685761411,-965.2500059,0.00048977,120]
[337477545,1725685761435,-965.25000583,0.00048977,120]
[337477546,1725685761460,-15671.51978291,0.00048978,6]
[337477547,1725685768893,300.0,0.0004,120]
[337477548,1725685789386,150.0,0.0004,7]
[337477618,1725685833650,150.0,0.00045,2]
[337477650,1725685837993,-388.39033494,0.00048879,2]
[337477651,1725685838003,-52.65731439,0.0004889,2]
[337477652,1725685838049,-790.19534358,0.0004889,2]
[337477653,1725685838059,-1000.0,0.000489,2]
[337477654,1725685838070,-809.05,0.00048968,30]
[337477655,1725685838079,-7261.75148217,0.00048968,120]
[337477656,1725685838089,-43808.36255889,0.00048978,6]
[337477657,1725685838099,-35958.11735035,0.00048978,6]
[337477673,1725685840036,-69071.38874492,0.00048978,6]
[337477674,1725685840147,-335.47651947,0.00048978,6]
[337477702,1725685843235,-2417.60891771,0.00048968,3]
[337477778,1725685846125,-423.9738852,0.00048968,3]
[337477989,1725685853782,207.02187,0.000382,2]
[337477991,1725685869526,150.0,0.0004,2]
[337477992,1725685892966,150.0,0.00046,2]
[337477993,1725685917798,150.0,0.00047,2]
[337477994,1725685932046,150.0,0.000475,2]
[337477996,1725686010896,155.0,0.0004,2]
[337477997,1725686015901,155.0,0.0004,2]
[337477998,1725686020598,155.0,0.0004,2]
[337477999,1725686025697,234.55280221,0.0004,2]
[337478001,1725686259493,500.0,0.00038474,7]
[337478003,1725686305788,38.97950649,0.00037692,120]
[337478004,1725686408794,812.95814251,0.00028492,2]
[337478005,1725686409895,482.39790713,0.00029916,2]
[337478007,1725686707697,800.44526184,0.00026442,10]
[337478010,1725686727075,3066.16726957,0.000375,2]
[337478011,1725686735217,4739.25751496,0.000375,2]
[337478014,1725686755150,-153.21570251,0.00037692,120]
[337478015,1725686755172,-169.641153,0.00039388,2]
[337478016,1725686755194,-600.0,0.0004,120]
[337478017,1725686755217,-180.93495815,0.00041319,2]
[337478019,1725686783162,98.77390399,0.0003,120]
[337478020,1725686783188,524.22609601,0.0003,120]
[337478021,1725686828197,-1500.0,0.00041,5]
[337478022,1725686828220,-212.92793985,0.00041319,2]
[337478023,1725686828243,-861.49920928,0.000425,120]
[337478024,1725686828274,-1962.24361288,0.000425,120]
[337478025,1725686828300,-150.0,0.00048,2]
[337478026,1725686828322,-150.0,0.00048,2]
[337478027,1725686828343,-636.97747675,0.00048,82]
[337478028,1725686842105,-200.0,0.0004,120]
[337478029,1725686842127,-73.29552325,0.00048,82]
[337478030,1725686842148,-69.14638213,0.00048,14]
[337478031,1725686851115,-1142.75790168,0.00048,14]
[337478035,1725686922788,9475.77390399,0.0001999,2]
[337478036,1725686922813,10000.0,0.0001999,2]
[337478037,1725686922840,1667.4502015,0.0001999,2]
[337478038,1725686924489,150.15989774,0.00027,2]
[337478045,1725687017758,605.33,0.00033974,30]
[337478078,1725687031978,-2000.0,0.000479,4]
[337478080,1725687031989,-788.09571619,0.00048,14]
[337478082,1725687031998,-151.56384183,0.00048459,2]
[337478084,1725687032008,-211.83385506,0.00048518,2]
[337478086,1725687032017,-1000.0,0.00048761,2]
[337478088,1725687032027,-310.71226792,0.0004877,2]
[337478090,1725687032036,-681.805,0.00048799,120]
[337478092,1725687032046,-2661.41410353,0.000488,30]
[337478105,1725687039228,-12174.19901692,0.000488,30]
[337478106,1725687039241,-39264.92150117,0.000488,30]
[337478107,1725687039251,-6631.15,0.00048827,3]
[337478108,1725687039261,-11311.51,0.00048828,3]
[337478109,1725687039273,-809.05,0.00048828,30]
[337478110,1725687039287,-9426.25,0.00048828,3]
[337478111,1725687039297,-7855.21,0.00048828,3]
[337478112,1725687039306,-198.73035736,0.00048837,7]
[337478113,1725687039317,-500.0,0.00048837,120]
[337478114,1725687039326,-500.0,0.00048837,120]
[337478115,1725687039336,-500.0,0.00048837,120]
[337478116,1725687039346,-500.0,0.00048837,120]
[337478117,1725687039356,-500.0,0.00048837,120]
[337478118,1725687039367,-500.0,0.00048837,120]
[337478119,1725687039378,-500.0,0.00048837,120]
[337478120,1725687039388,-500.0,0.00048837,120]
[337478121,1725687039398,-500.0,0.00048837,120]
[337478123,1725687039408,-500.0,0.00048837,120]
[337478125,1725687039418,-500.0,0.00048837,120]
[337478127,1725687039428,-500.0,0.00048837,120]
[337478129,1725687039438,-500.0,0.00048837,120]
[337478130,1725687039449,-500.0,0.00048837,120]
[337478131,1725687039459,-500.0,0.00048837,120]
[337478133,1725687039468,-500.0,0.00048837,120]
[337478135,1725687039478,-500.0,0.00048837,120]
[337478137,1725687039488,-500.0,0.00048837,120]
[337478139,1725687039499,-500.0,0.00048837,120]
[337478140,1725687039509,-355.05373758,0.00048837,120]
[337478141,1725687039519,-500.0,0.00048837,120]
[337478142,1725687039528,-500.0,0.00048837,120]
[337478143,1725687039538,-500.0,0.00048837,120]
[337478144,1725687039548,-923.64919987,0.00048838,2]
[337478145,1725687039558,-55555.0,0.00048838,120]
[337478146,1725687039569,-3199.85079179,0.00048839,61]
[337478147,1725687039580,-30273.1103276,0.0004884,6]
[337478148,1725687039591,-107256.11241901,0.0004884,6]
[337478149,1725687039603,-2341.13978799,0.0004884,6]
[337478150,1725687039615,-999.0,0.0004886,120]
[337478152,1725687039636,-151.0,0.0004886,120]
[337478154,1725687039655,-151.0,0.0004886,120]
[337478156,1725687039665,-425.213385,0.0004886,120]
[337478158,1725687039677,-151.0,0.0004886,120]